[Event "22nd Ruzomberok Open 2019"]
[Site "Ruzomberok"]
[Date "2019.07.07"]
[Round "9.11"]
[White "Orvisky, Vladimir"]
[Black "Galbavy, Dusan"]
[Result "1/2-1/2"]
[ECO "A13"]
[WhiteElo "1704"]
[BlackElo "1735"]
[Annotator "NA"]
[PlyCount "95"]
[EventDate "2019.06.29"]
[EventType "swiss"]
[EventCountry "SVK"]
[SourceTitle "playchess.com"]
[Source "ChessBase"]
[SourceQuality "1"]
[TimeControl "40/5400+30:1800+30"]

1. c4 {[%emt 0:00:00]} e6 {[%emt 0:00:16]} 2. Nc3 {[%emt 0:00:00]} d5 {[%emt 0:00:41]} 3. d4 {[%emt 0:01:01]} f5 {[%emt 0:00:50]} 4. Nf3 {[%emt 0:00:48]} Nf6 {[%emt 0:00:28]} 5. Bf4 {[%emt 0:00:09]} c6 {[%emt 0:00:17]} 6. h3 {[%emt 0:01:05]} Bb4 {[%emt 0:00:17]} 7. e3 {[%emt 0:01:10]} Ne4 {[%emt 0:00:44]} 8. Qb3 {[%emt 0:00:49]} Be7 {[%emt 0:03:48]} 9. Be2 {[%emt 0:00:03]} O-O {[%emt 0:00:32]} 10. O-O {[%emt 0:13:54]} Nd7 {[%emt 0:00:35]} 11. Rad1 {[%emt 0:02:04]} g5 {[%emt 0:02:15]} 12. Bh2 {[%emt 0:07:55]} h5 {[%emt 0:03:00]} 13. Ne5 {[%emt 0:00:32]} Qe8 {[%emt 0:03:04]} 14. cxd5 {[%emt 0:11:03]} exd5 15. Nxd5 cxd5 16. Qxd5+ {[%emt 0:02:12]} Kh7 {[%emt 0:10:26]} 17. Bxh5 {[%emt 0:07:07]} Qxh5 {[%emt 0:00:00]} 18. Nxd7 {[%emt 0:00:11]} Bxd7 {[%emt 0:02:53]} 19. Qxd7 {[%emt 0:00:00]} Qf7 {[%emt 0:09:11]} 20. f3 {[%emt 0:00:00]} Rad8 {[%emt 0:07:09]} 21. Qxb7 {[%emt 0:00:00]} Nd6 {[%emt 0:00:52]} 22. Bxd6 {[%emt 0:01:23]} Bxd6 {[%emt 0:01:37]} 23. Qxf7+ {[%emt 0:09:42]} Rxf7 {[%emt 0:00:06]} 24. g4 {[%emt 0:00:20]} f4 {[%emt 0:05:35]} 25. e4 {[%emt 0:03:36]} Rb7 {[%emt 0:01:02]} 26. b3 {[%emt 0:08:30]} Ba3 {[%emt 0:01:29]} 27. Rfe1 {[%emt 0:03:27]} Rxd4 {[%emt 0:04:27]} 28. Rxd4 {[%emt 0:00:05]} Bc5 {[%emt 0:00:24]} 29. Red1 {[%emt 0:00:24]} Rd7 {[%emt 0:00:00]} 30. Kf1 {[%emt 0:00:15]} Rxd4 {[%emt 0:00:30]} 31. Rxd4 {[%emt 0:00:14]} Bxd4 {[%emt 0:00:05]} 32. Ke2 {[%emt 0:00:11]} Kg6 {[%emt 0:02:13]} 33. Kd3 {[%emt 0:00:47]} Bb2 {[%emt 0:04:10]} 34. Kc4 {[%emt 0:00:47]} Kf6 {[%emt 0:02:27]} 35. b4 {[%emt 0:00:52]} Ke5 {[%emt 0:01:47]} 36. a4 {[%emt 0:05:15]} Bd4 {[%emt 0:02:31]} 37. a5 {[%emt 0:03:07]} Bf2 {[%emt 0:08:50]} 38. Kb5 {[%emt 0:03:48]} Kd6 {[%emt 0:02:18]} 39. Ka6 {[%emt 0:12:50]} Kc7 {[%emt 0:03:20]} 40. e5 {[%emt 0:03:29]} Bd4 {[%emt 0:08:41]} 41. b5 {[%emt 0:02:10]} Kb8 {[%emt 0:32:48]} 42. e6 {[%emt 0:00:57]} Bc5 {[%emt 0:00:00]} 43. b6 {[%emt 0:00:11]} axb6 {[%emt 0:00:00]} 44. axb6 {[%emt 0:04:39]} Be7 {[%emt 0:00:00]} 45. Kb5 {[%emt 0:00:14]} Kb7 {[%emt 0:00:00]} 46. Ka5 {[%emt 0:01:22]} Bd6 {[%emt 0:00:00]} 47. Kb5 Be7 {[%emt 0:00:00]} 48. Ka5 1/2-1/2

[Event "22nd Ruzomberok Open 2019"]
[Site "Ruzomberok"]
[Date "2019.07.07"]
[Round "9.12"]
[White "Ambrozi, Peter"]
[Black "Cech, Dominik"]
[Result "1-0"]
[ECO "A01"]
[WhiteElo "1888"]
[BlackElo "2092"]
[Annotator "NA"]
[PlyCount "55"]
[EventDate "2019.06.29"]
[EventType "swiss"]
[EventCountry "SVK"]
[SourceTitle "playchess.com"]
[Source "ChessBase"]
[SourceQuality "1"]
[TimeControl "40/5400+30:1800+30"]

1. b3 {[%emt 0:00:00]} e5 {[%emt 0:06:03]} 2. Bb2 {[%emt 0:00:00]} Nc6 {[%emt 0:00:20]} 3. e3 {[%emt 0:00:08]} d5 {[%emt 0:06:34]} 4. Bb5 {[%emt 0:00:42]} Bd6 {[%emt 0:01:26]} 5. f4 {[%emt 0:03:16]} Qe7 {[%emt 0:06:08]} 6. Nf3 {[%emt 0:03:03]} Bg4 {[%emt 0:11:52]} 7. h3 {[%emt 0:03:23]} Bxf3 {[%emt 0:06:33]} 8. Qxf3 {[%emt 0:00:56]} Nf6 {[%emt 0:00:28]} 9. c4 {[%emt 0:07:05]} O-O {[%emt 0:09:21]} 10. Bxc6 {[%emt 0:00:47]} bxc6 {[%emt 0:00:32]} 11. fxe5 {[%emt 0:01:17]} Bxe5 {[%emt 0:06:14]} 12. d4 {[%emt 0:01:59]} Bd6 {[%emt 0:00:38]} 13. c5 {[%emt 0:00:18]} Bxc5 {[%emt 0:00:14]} 14. dxc5 {[%emt 0:00:17]} Qxc5 {[%emt 0:00:07]} 15. O-O {[%emt 0:01:06]} Ne4 {[%emt 0:02:38]} 16. Rc1 {[%emt 0:04:31]} Qd6 {[%emt 0:11:32]} 17. Nc3 {[%emt 0:02:24]} Rfe8 {[%emt 0:02:59]} 18. Nxe4 {[%emt 0:01:23]} Rxe4 {[%emt 0:00:27]} 19. Bd4 {[%emt 0:00:33]} a5 {[%emt 0:05:58]} 20. Rc5 {[%emt 0:03:57]} a4 {[%emt 0:00:28]} 21. Rac1 {[%emt 0:01:08]} axb3 {[%emt 0:02:44]} 22. axb3 {[%emt 0:00:31]} Ra6 {[%emt 0:04:35]} 23. b4 {[%emt 0:01:16]} Rb6 {[%emt 0:02:54]} 24. b5 {[%emt 0:00:42]} Rxb5 {[%emt 0:02:49]} 25. Rxc6 {[%emt 0:00:22]} Qf8 {[%emt 0:02:18]} 26. Rxc7 {[%emt 0:00:15]} Rb8 {[%emt 0:00:09]} 27. Qf5 {[%emt 0:00:24]} Rd8 {[%emt 0:01:05]} 28. Rb1 {[%emt 0:02:54]} 1-0

[Event "22nd Ruzomberok Open 2019"]
[Site "Ruzomberok"]
[Date "2019.07.07"]
[Round "9.13"]
[White "Vacek, Ondrej"]
[Black "Janik, Miroslav"]
[Result "1-0"]
[ECO "D12"]
[WhiteElo "2125"]
[BlackElo "1889"]
[Annotator "NA"]
[PlyCount "81"]
[EventDate "2019.06.29"]
[EventType "swiss"]
[EventCountry "SVK"]
[SourceTitle "playchess.com"]
[Source "ChessBase"]
[SourceQuality "1"]
[TimeControl "40/5400+30:1800+30"]

1. Nf3 {[%emt 0:00:00]} d5 {[%emt 0:02:53]} 2. d4 {[%emt 0:00:00]} Nf6 {[%emt 0:00:52]} 3. c4 {[%emt 0:00:00]} c6 {[%emt 0:01:17]} 4. e3 {[%emt 0:00:07]} Bf5 {[%emt 0:03:19]} 5. Nc3 {[%emt 0:00:20]} e6 {[%emt 0:09:38]} 6. Bd3 {[%emt 0:00:26]} Bxd3 {[%emt 0:00:38]} 7. Qxd3 {[%emt 0:00:04]} Nbd7 {[%emt 0:01:08]} 8. O-O {[%emt 0:00:09]} Bd6 {[%emt 0:02:19]} 9. e4 {[%emt 0:00:54]} dxe4 {[%emt 0:00:29]} 10. Nxe4 {[%emt 0:00:05]} Nxe4 {[%emt 0:00:15]} 11. Qxe4 {[%emt 0:00:05]} Nf6 {[%emt 0:01:42]} 12. Qe2 {[%emt 0:00:16]} h6 {[%emt 0:00:42]} 13. Bd2 {[%emt 0:03:05]} a5 {[%emt 0:01:59]} 14. Bc3 {[%emt 0:01:38]} O-O {[%emt 0:01:12]} 15. Rad1 {[%emt 0:00:54]} Qe7 {[%emt 0:02:47]} 16. Rfe1 {[%emt 0:04:21]} Rfe8 {[%emt 0:01:43]} 17. Rd3 {[%emt 0:03:43]} Bb4 {[%emt 0:10:16]} 18. Ne5 {[%emt 0:03:21]} Bxc3 {[%emt 0:00:54]} 19. bxc3 {[%emt 0:02:14]} Nd7 {[%emt 0:04:05]} 20. Rg3 {[%emt 0:03:47]} Nxe5 {[%emt 0:02:40]} 21. Qxe5 {[%emt 0:00:30]} f6 {[%emt 0:03:40]} 22. Qh5 {[%emt 0:01:35]} Kh8 {[%emt 0:01:49]} 23. Rge3 {[%emt 0:02:06]} Qd6 {[%emt 0:02:59]} 24. c5 {[%emt 0:03:26]} Qd7 {[%emt 0:08:16]} 25. Qh3 {[%emt 0:03:01]} Rad8 {[%emt 0:07:29]} 26. Rxe6 {[%emt 0:02:21]} Rxe6 {[%emt 0:00:44]} 27. Qxe6 {[%emt 0:00:18]} Qc7 {[%emt 0:00:59]} 28. Qe7 {[%emt 0:01:46]} Rd7 {[%emt 0:01:09]} 29. Qe8+ {[%emt 0:00:47]} Kh7 {[%emt 0:00:22]} 30. h4 {[%emt 0:01:14]} g6 {[%emt 0:06:33]} 31. g3 {[%emt 0:02:09]} h5 {[%emt 0:03:31]} 32. Kg2 {[%emt 0:01:14]} Rf7 {[%emt 0:02:56]} 33. a4 {[%emt 0:02:18]} Kg7 {[%emt 0:01:55]} 34. Re6 {[%emt 0:05:07]} Kh7 {[%emt 0:03:15]} 35. Rd6 {[%emt 0:05:27]} g5 {[%emt 0:07:58]} 36. Qe4+ {[%emt 0:02:45]} f5 {[%emt 0:01:35]} 37. Qe6 {[%emt 0:01:02]} gxh4 {[%emt 0:00:41]} 38. Qg6+ {[%emt 0:01:44]} Kh8 {[%emt 0:00:12]} 39. Qxh5+ {[%emt 0:00:21]} Kg8 {[%emt 0:00:50]} 40. Qxh4 {[%emt 0:00:51]} Rh7 {[%emt 0:01:47]} 41. Qd8+ {[%emt 0:33:01]} 1-0

[Event "22nd Ruzomberok Open 2019"]
[Site "Ruzomberok"]
[Date "2019.07.07"]
[Round "9.14"]
[White "Bemak, Mikhail"]
[Black "Mc Aleenan, Charles"]
[Result "1-0"]
[ECO "D18"]
[WhiteElo "2102"]
[BlackElo "1746"]
[Annotator "NA"]
[PlyCount "146"]
[EventDate "2019.06.29"]
[EventType "swiss"]
[EventCountry "SVK"]
[SourceTitle "playchess.com"]
[Source "ChessBase"]
[SourceQuality "1"]
[TimeControl "40/5400+30:1800+30"]

1. d4 {[%emt 0:00:00]} d5 {[%emt 0:00:00]} 2. c4 {[%emt 0:00:14]} c6 {[%emt 0:00:34]} 3. Nf3 {[%emt 0:00:19]} Nf6 {[%emt 0:00:34]} 4. Nc3 {[%emt 0:00:28]} dxc4 {[%emt 0:00:36]} 5. a4 {[%emt 0:00:43]} Bf5 {[%emt 0:00:34]} 6. e3 {[%emt 0:00:08]} e6 {[%emt 0:00:19]} 7. Bxc4 {[%emt 0:00:04]} Bb4 {[%emt 0:00:28]} 8. O-O {[%emt 0:00:09]} Nbd7 {[%emt 0:00:33]} 9. Qe2 {[%emt 0:00:18]} O-O {[%emt 0:00:28]} 10. Rd1 {[%emt 0:00:06]} Nb6 {[%emt 0:05:40]} 11. Bd3 {[%emt 0:03:24]} Bxd3 {[%emt 0:05:03]} 12. Rxd3 {[%emt 0:00:24]} Nbd5 {[%emt 0:04:25]} 13. e4 {[%emt 0:02:03]} Nxc3 {[%emt 0:05:02]} 14. bxc3 {[%emt 0:00:06]} Be7 {[%emt 0:00:08]} 15. c4 {[%emt 0:05:08]} Re8 {[%emt 0:04:58]} 16. e5 {[%emt 0:06:07]} Nd7 {[%emt 0:00:50]} 17. Bb2 {[%emt 0:04:45]} Nf8 {[%emt 0:04:03]} 18. Nd2 {[%emt 0:13:46]} Qc7 {[%emt 0:07:47]} 19. Ne4 {[%emt 0:01:54]} Red8 {[%emt 0:06:44]} 20. Rc1 {[%emt 0:09:53]} Qd7 {[%emt 0:03:24]} 21. Qg4 {[%emt 0:01:09]} Kh8 {[%emt 0:00:20]} 22. Rf3 {[%emt 0:01:59]} Ng6 {[%emt 0:08:17]} 23. Qh5 {[%emt 0:08:45]} Qe8 {[%emt 0:02:18]} 24. Rh3 {[%emt 0:04:33]} Qg8 {[%emt 0:00:58]} 25. Qg4 {[%emt 0:01:46]} Rd7 {[%emt 0:06:34]} 26. Ng5 {[%emt 0:09:30]} Bxg5 {[%emt 0:02:51]} 27. Qxg5 {[%emt 0:00:06]} Rad8 {[%emt 0:00:17]} 28. Re3 {[%emt 0:10:04]} Qf8 {[%emt 0:04:10]} 29. Ba3 {[%emt 0:00:36]} Qe8 {[%emt 0:04:20]} 30. Bd6 {[%emt 0:00:25]} Ne7 {[%emt 0:04:02]} 31. Re4 {[%emt 0:04:25]} Nf5 {[%emt 0:02:11]} 32. c5 {[%emt 0:02:07]} h6 {[%emt 0:02:16]} 33. Qf4 {[%emt 0:02:26]} Ne7 {[%emt 0:00:26]} 34. g4 {[%emt 0:01:07]} Nd5 {[%emt 0:02:34]} 35. Qd2 {[%emt 0:00:55]} g5 {[%emt 0:03:18]} 36. h4 {[%emt 0:02:19]} Qg8 {[%emt 0:00:09]} 37. Kh2 {[%emt 0:02:19]} Qg6 {[%emt 0:00:57]} 38. Qe2 {[%emt 0:02:01]} Nf4 {[%emt 0:02:08]} 39. Qf3 {[%emt 0:00:09]} Nd5 {[%emt 0:00:50]} 40. h5 {[%emt 0:02:20]} Qg7 {[%emt 0:00:36]} 41. Re2 {[%emt 0:03:30]} a5 {[%emt 0:00:00]} 42. Rb2 {[%emt 0:03:32]} Nb4 {[%emt 0:00:56]} 43. Rb3 {[%emt 0:00:40]} Kg8 {[%emt 0:02:13]} 44. Qe3 {[%emt 0:01:08]} Qh7 {[%emt 0:01:44]} 45. Qe2 {[%emt 0:04:57]} Nd5 {[%emt 0:00:57]} 46. Re1 {[%emt 0:01:17]} Ra8 {[%emt 0:02:26]} 47. Qb2 {[%emt 0:01:25]} Nb4 {[%emt 0:01:51]} 48. Qd2 {[%emt 0:01:51]} Nc2 {[%emt 0:02:37]} 49. Re2 {[%emt 0:00:43]} Nb4 {[%emt 0:00:14]} 50. f4 {[%emt 0:00:39]} gxf4 {[%emt 0:01:56]} 51. Qxf4 {[%emt 0:00:12]} Nd5 {[%emt 0:00:43]} 52. Qd2 {[%emt 0:00:43]} Kh8 {[%emt 0:02:11]} 53. Rg2 {[%emt 0:04:58]} Rg8 {[%emt 0:01:01]} 54. Rbg3 {[%emt 0:00:52]} Rg5 {[%emt 0:01:05]} 55. Re2 {[%emt 0:04:31]} Rd8 {[%emt 0:02:24]} 56. Kh3 {[%emt 0:01:20]} Rdg8 {[%emt 0:01:24]} 57. Rf2 {[%emt 0:00:17]} Qg7 {[%emt 0:02:37]} 58. Rfg2 {[%emt 0:00:40]} Qh7 {[%emt 0:00:35]} 59. Qf2 {[%emt 0:00:39]} Qg7 {[%emt 0:00:29]} 60. Qf3 {[%emt 0:00:47]} Qh7 {[%emt 0:05:03]} 61. Rb2 {[%emt 0:01:01]} R5g7 {[%emt 0:05:58]} 62. Rxb7 {[%emt 0:00:13]} f5 {[%emt 0:01:24]} 63. Rxg7 {[%emt 0:00:47]} Rxg7 {[%emt 0:00:09]} 64. gxf5 {[%emt 0:00:54]} Rxg3+ {[%emt 0:01:09]} 65. Kxg3 {[%emt 0:00:07]} exf5 {[%emt 0:00:20]} 66. Kh3 {[%emt 0:01:48]} Qd7 {[%emt 0:02:21]} 67. Qg3 {[%emt 0:00:55]} Qg7 {[%emt 0:01:47]} 68. e6 {[%emt 0:00:52]} Qg4+ {[%emt 0:01:02]} 69. Qxg4 {[%emt 0:00:12]} fxg4+ {[%emt 0:00:06]} 70. Kxg4 {[%emt 0:00:30]} Kg7 {[%emt 0:00:01]} 71. Be5+ {[%emt 0:00:45]} Kf8 {[%emt 0:00:37]} 72. Kf5 {[%emt 0:00:24]} Ne3+ {[%emt 0:01:41]} 73. Kg6 {[%emt 0:00:44]} Ng4 {[%emt 0:00:17]} 1-0

[Event "22nd Ruzomberok Open 2019"]
[Site "Ruzomberok"]
[Date "2019.07.07"]
[Round "9.15"]
[White "Holly, Andrej"]
[Black "Salomons, Lorenzo"]
[Result "1-0"]
[ECO "A20"]
[WhiteElo "2046"]
[BlackElo "1842"]
[Annotator "NA"]
[PlyCount "45"]
[EventDate "2019.06.29"]
[EventType "swiss"]
[EventCountry "SVK"]
[SourceTitle "playchess.com"]
[Source "ChessBase"]
[SourceQuality "1"]
[TimeControl "40/5400+30:1800+30"]

1. c4 {[%emt 0:00:00]} e5 {[%emt 0:00:00]} 2. g3 {[%emt 0:00:00]} Nf6 {[%emt 0:00:23]} 3. Bg2 {[%emt 0:00:14]} Nc6 {[%emt 0:05:43]} 4. Nc3 {[%emt 0:01:30]} Bc5 {[%emt 0:01:17]} 5. e3 {[%emt 0:02:24]} O-O {[%emt 0:10:00]} 6. Nge2 {[%emt 0:00:50]} d5 {[%emt 0:00:17]} 7. Nxd5 {[%emt 0:11:46]} Nxd5 {[%emt 0:00:14]} 8. cxd5 {[%emt 0:00:01]} Nb4 {[%emt 0:01:52]} 9. Qb3 {[%emt 0:03:43]} c6 {[%emt 0:00:21]} 10. e4 {[%emt 0:05:39]} Qb6 {[%emt 0:02:45]} 11. O-O {[%emt 0:01:49]} cxd5 {[%emt 0:00:57]} 12. a3 {[%emt 0:02:43]} Na6 {[%emt 0:09:37]} 13. Qxb6 {[%emt 0:06:16]} Bxb6 {[%emt 0:02:30]} 14. exd5 {[%emt 0:02:52]} Rd8 {[%emt 0:00:32]} 15. b4 {[%emt 0:17:03]} Nc7 {[%emt 0:00:57]} 16. Bb2 {[%emt 0:00:23]} f6 {[%emt 0:00:09]} 17. d4 {[%emt 0:04:48]} Bg4 {[%emt 0:01:45]} 18. Rfe1 {[%emt 0:02:33]} Bxe2 {[%emt 0:09:31]} 19. Rxe2 {[%emt 0:00:55]} exd4 {[%emt 0:00:07]} 20. Rd2 {[%emt 0:03:33]} Nxd5 {[%emt 0:00:39]} 21. Bxd4 {[%emt 0:01:16]} Nxb4 {[%emt 0:02:16]} 22. Bxb6 {[%emt 0:00:13]} Rxd2 {[%emt 0:00:04]} 23. axb4 {[%emt 0:00:07]} 1-0

[Event "22nd Ruzomberok Open 2019"]
[Site "Ruzomberok"]
[Date "2019.07.07"]
[Round "9.16"]
[White "Balogh, Peter"]
[Black "Mocary, Metod"]
[Result "1/2-1/2"]
[ECO "B07"]
[WhiteElo "2037"]
[BlackElo "1857"]
[Annotator "NA"]
[PlyCount "51"]
[EventDate "2019.06.29"]
[EventType "swiss"]
[EventCountry "SVK"]
[SourceTitle "playchess.com"]
[Source "ChessBase"]
[SourceQuality "1"]
[TimeControl "40/5400+30:1800+30"]

1. e4 {[%emt 0:00:00]} d6 {[%emt 0:00:48]} 2. d4 {[%emt 0:00:00]} Nf6 {[%emt 0:00:08]} 3. Nc3 {[%emt 0:00:00]} g6 {[%emt 0:00:06]} 4. Bg5 {[%emt 0:00:00]} h6 {[%emt 0:00:24]} 5. Bxf6 {[%emt 0:00:28]} exf6 {[%emt 0:00:14]} 6. f4 {[%emt 0:00:35]} Bg7 {[%emt 0:00:23]} 7. Qf3 {[%emt 0:00:24]} O-O {[%emt 0:08:23]} 8. O-O-O {[%emt 0:00:19]} c6 {[%emt 0:06:49]} 9. g4 {[%emt 0:00:48]} b5 {[%emt 0:00:48]} 10. h4 {[%emt 0:00:23]} b4 {[%emt 0:00:14]} 11. Nb1 {[%emt 0:00:08]} Qa5 {[%emt 0:00:27]} 12. Bc4 {[%emt 0:01:10]} Ba6 {[%emt 0:05:48]} 13. Qb3 {[%emt 0:02:13]} Bxc4 {[%emt 0:10:38]} 14. Qxc4 {[%emt 0:00:35]} d5 {[%emt 0:00:23]} 15. exd5 {[%emt 0:00:57]} Qxd5 {[%emt 0:00:39]} 16. Qxd5 {[%emt 0:00:11]} cxd5 {[%emt 0:00:12]} 17. f5 {[%emt 0:02:40]} Nc6 {[%emt 0:06:59]} 18. Nf3 {[%emt 0:01:50]} Rfe8 {[%emt 0:01:58]} 19. Rde1 {[%emt 0:01:04]} Kf8 {[%emt 0:02:38]} 20. fxg6 {[%emt 0:00:44]} fxg6 {[%emt 0:00:22]} 21. h5 {[%emt 0:00:12]} gxh5 {[%emt 0:01:08]} 22. gxh5 {[%emt 0:00:58]} Rxe1+ {[%emt 0:00:42]} 23. Rxe1 {[%emt 0:00:05]} Re8 {[%emt 0:00:17]} 24. Rxe8+ {[%emt 0:00:21]} Kxe8 {[%emt 0:00:12]} 25. Kd2 {[%emt 0:00:17]} Kf7 {[%emt 0:04:36]} 26. Ke3 {[%emt 0:01:12]} 1/2-1/2

[Event "22nd Ruzomberok Open 2019"]
[Site "Ruzomberok"]
[Date "2019.07.07"]
[Round "9.17"]
[White "Bakalar, Jan"]
[Black "Pecho, Juraj"]
[Result "1-0"]
[ECO "B00"]
[WhiteElo "1964"]
[BlackElo "1900"]
[Annotator "NA"]
[PlyCount "121"]
[EventDate "2019.06.29"]
[EventType "swiss"]
[EventCountry "SVK"]
[SourceTitle "playchess.com"]
[Source "ChessBase"]
[SourceQuality "1"]
[TimeControl "40/5400+30:1800+30"]

1. e4 {[%emt 0:00:00]} d6 {[%emt 0:00:00]} 2. Nc3 {[%emt 0:00:32]} Nf6 {[%emt 0:00:01]} 3. d4 {[%emt 0:00:57]} Nbd7 {[%emt 0:00:06]} 4. g3 {[%emt 0:01:43]} e5 {[%emt 0:00:17]} 5. Bg2 {[%emt 0:01:47]} Be7 {[%emt 0:00:21]} 6. Nge2 {[%emt 0:00:30]} O-O {[%emt 0:00:50]} 7. O-O {[%emt 0:01:06]} c6 {[%emt 0:00:49]} 8. a4 {[%emt 0:05:13]} Qc7 {[%emt 0:00:12]} 9. h3 {[%emt 0:01:30]} b6 {[%emt 0:00:08]} 10. Be3 {[%emt 0:03:15]} a6 {[%emt 0:00:51]} 11. g4 {[%emt 0:01:26]} h6 {[%emt 0:06:20]} 12. Ng3 {[%emt 0:02:48]} exd4 {[%emt 0:01:37]} 13. Qxd4 {[%emt 0:02:32]} Re8 {[%emt 0:02:38]} 14. Nf5 {[%emt 0:01:24]} Bf8 {[%emt 0:06:21]} 15. Rfd1 {[%emt 0:02:46]} Re6 {[%emt 0:13:15]} 16. b3 {[%emt 0:02:21]} Bb7 {[%emt 0:01:07]} 17. Qd2 {[%emt 0:07:10]} Rae8 {[%emt 0:06:36]} 18. Bf4 {[%emt 0:03:22]} Ne5 {[%emt 0:04:49]} 19. f3 {[%emt 0:04:52]} d5 {[%emt 0:03:45]} 20. exd5 {[%emt 0:07:25]} cxd5 {[%emt 0:06:16]} 21. Ne2 {[%emt 0:05:12]} Qc5+ {[%emt 0:03:15]} 22. Ned4 {[%emt 0:02:01]} Nc6 {[%emt 0:18:16]} 23. b4 {[%emt 0:07:38]} Nxb4 {[%emt 0:00:26]} 24. Kh1 {[%emt 0:00:47]} g5 {[%emt 0:05:46]} 25. Nxe6 {[%emt 0:02:17]} fxe6 {[%emt 0:00:14]} 26. Be3 {[%emt 0:06:54]} Qc7 {[%emt 0:00:01]} 27. c3 {[%emt 0:01:42]} Nc6 {[%emt 0:00:55]} 28. Nd4 {[%emt 0:00:43]} Ne5 {[%emt 0:00:20]} 29. Rab1 {[%emt 0:02:47]} Nc4 {[%emt 0:00:12]} 30. Qd3 {[%emt 0:00:38]} Nxe3 {[%emt 0:02:57]} 31. Qxe3 {[%emt 0:00:02]} Qg3 {[%emt 0:00:22]} 32. Rxb6 {[%emt 0:00:45]} Bd6 {[%emt 0:00:14]} 33. Qg1 {[%emt 0:01:05]} Ba8 {[%emt 0:02:12]} 34. Rdb1 {[%emt 0:03:45]} Nd7 {[%emt 0:01:24]} 35. Rxa6 {[%emt 0:00:50]} Nc5 {[%emt 0:01:18]} 36. Ne2 {[%emt 0:02:42]} Qe5 {[%emt 0:00:48]} 37. Rxd6 {[%emt 0:02:08]} Qxd6 {[%emt 0:00:01]} 38. Qd4 {[%emt 0:01:24]} e5 {[%emt 0:01:42]} 39. Qb4 {[%emt 0:01:24]} Bc6 {[%emt 0:00:31]} 40. Ng3 {[%emt 0:01:01]} Qf8 {[%emt 0:04:04]} 41. Nf5 {[%emt 0:37:05]} Nxa4 {[%emt 0:32:03]} 42. Qa5 {[%emt 0:03:55]} Re6 {[%emt 0:00:00]} 43. Qc7 {[%emt 0:00:00]} Nc5 {[%emt 0:00:00]} 44. Rb8 {[%emt 0:00:00]} Be8 {[%emt 0:00:00]} 45. Qd8 {[%emt 0:00:00]} Nd7 {[%emt 0:00:00]} 46. Ra8 {[%emt 0:00:00]} Bf7 {[%emt 0:00:00]} 47. Qa5 {[%emt 0:00:00]} Re8 {[%emt 0:00:00]} 48. Rxe8 {[%emt 0:00:00]} Qxe8 {[%emt 0:00:00]} 49. Nxh6+ {[%emt 0:00:00]} Kh7 {[%emt 0:00:00]} 50. Nf5 {[%emt 0:00:00]} Be6 {[%emt 0:00:00]} 51. Ne3 {[%emt 0:00:00]} d4 {[%emt 0:00:40]} 52. cxd4 {[%emt 0:00:00]} exd4 {[%emt 0:00:02]} 53. Nf1 {[%emt 0:00:00]} Bc4 {[%emt 0:02:51]} 54. Qxg5 {[%emt 0:00:00]} Bxf1 {[%emt 0:01:21]} 55. Bxf1 {[%emt 0:00:00]} Qe1 {[%emt 0:00:11]} 56. Kg2 {[%emt 0:00:00]} Ne5 {[%emt 0:00:39]} 57. Bd3+ {[%emt 0:00:00]} Kh8 {[%emt 0:00:33]} 58. Qd8+ {[%emt 0:00:00]} Kg7 {[%emt 0:00:17]} 59. Qe7+ {[%emt 0:00:29]} Kh6 {[%emt 0:00:40]} 60. Qh7+ {[%emt 0:01:10]} Kg5 {[%emt 0:00:16]} 61. f4+ {[%emt 0:00:57]} 1-0

[Event "22nd Ruzomberok Open 2019"]
[Site "Ruzomberok"]
[Date "2019.07.07"]
[Round "9.18"]
[White "Mudron, Jan"]
[Black "Karcol, Jan"]
[Result "0-1"]
[ECO "D85"]
[WhiteElo "1756"]
[BlackElo "1882"]
[Annotator "NA"]
[PlyCount "106"]
[EventDate "2019.06.29"]
[EventType "swiss"]
[EventCountry "SVK"]
[SourceTitle "playchess.com"]
[Source "ChessBase"]
[SourceQuality "1"]
[TimeControl "40/5400+30:1800+30"]

1. d4 {[%emt 0:00:00]} Nf6 {[%emt 0:00:00]} 2. c4 {[%emt 0:00:00]} g6 {[%emt 0:00:00]} 3. Nc3 {[%emt 0:00:00]} d5 {[%emt 0:00:06]} 4. cxd5 {[%emt 0:00:26]} Nxd5 {[%emt 0:00:02]} 5. e4 {[%emt 0:00:07]} Nxc3 {[%emt 0:00:10]} 6. bxc3 {[%emt 0:00:03]} Bg7 {[%emt 0:00:10]} 7. Nf3 {[%emt 0:00:18]} c5 {[%emt 0:00:31]} 8. Be2 {[%emt 0:00:21]} Bg4 {[%emt 0:01:00]} 9. Be3 {[%emt 0:03:00]} Nc6 {[%emt 0:00:22]} 10. e5 {[%emt 0:05:30]} cxd4 {[%emt 0:00:20]} 11. cxd4 {[%emt 0:00:07]} Qa5+ {[%emt 0:00:43]} 12. Bd2 {[%emt 0:03:58]} Qd5 {[%emt 0:03:15]} 13. Be3 {[%emt 0:03:05]} O-O {[%emt 0:02:58]} 14. O-O {[%emt 0:02:01]} Rad8 {[%emt 0:07:23]} 15. Qa4 {[%emt 0:13:37]} Qd7 {[%emt 0:10:59]} 16. Rad1 {[%emt 0:09:21]} Nxe5 {[%emt 0:03:21]} 17. Qxd7 {[%emt 0:13:17]} Nxd7 {[%emt 0:01:23]} 18. h3 {[%emt 0:01:12]} Bf5 {[%emt 0:00:54]} 19. d5 {[%emt 0:00:48]} Nb6 {[%emt 0:02:32]} 20. Bc5 {[%emt 0:03:53]} Nxd5 {[%emt 0:07:01]} 21. Bc4 {[%emt 0:10:41]} b6 {[%emt 0:13:59]} 22. Ba3 {[%emt 0:01:51]} Be6 {[%emt 0:01:16]} 23. Ng5 {[%emt 0:00:13]} Bf6 {[%emt 0:02:42]} 24. Nxe6 {[%emt 0:00:56]} fxe6 {[%emt 0:00:02]} 25. Rfe1 {[%emt 0:03:14]} Kf7 {[%emt 0:00:55]} 26. Rd3 {[%emt 0:02:37]} Rd7 {[%emt 0:06:24]} 27. Red1 {[%emt 0:01:39]} Rc8 {[%emt 0:04:51]} 28. Bb3 {[%emt 0:01:15]} b5 {[%emt 0:02:05]} 29. Bxd5 {[%emt 0:02:05]} Rxd5 {[%emt 0:00:24]} 30. Rxd5 {[%emt 0:00:05]} exd5 {[%emt 0:00:08]} 31. Rxd5 {[%emt 0:00:05]} Rc2 {[%emt 0:03:35]} 32. Rxb5 {[%emt 0:00:32]} Rxa2 {[%emt 0:00:09]} 33. Bc5 {[%emt 0:01:19]} Ke6 {[%emt 0:03:59]} 34. Rb7 {[%emt 0:00:49]} a5 {[%emt 0:00:22]} 35. Ra7 {[%emt 0:00:54]} a4 {[%emt 0:00:20]} 36. g3 {[%emt 0:00:57]} Rc2 {[%emt 0:03:33]} 37. Be3 {[%emt 0:01:34]} Rc4 {[%emt 0:00:52]} 38. Kf1 {[%emt 0:01:36]} Kd5 {[%emt 0:01:00]} 39. Ke2 {[%emt 0:03:18]} Re4 {[%emt 0:01:48]} 40. Kd2 {[%emt 0:01:58]} Rb4 {[%emt 0:01:41]} 41. Kd3 {[%emt 0:17:50]} Rb3+ {[%emt 0:01:07]} 42. Kc2 {[%emt 0:01:29]} Ra3 {[%emt 0:01:00]} 43. Ra5+ {[%emt 0:05:32]} Ke4 {[%emt 0:08:32]} 44. Kb1 {[%emt 0:05:24]} Kd3 {[%emt 0:07:28]} 45. Rd5+ {[%emt 0:00:41]} Ke4 {[%emt 0:02:13]} 46. Rd7 {[%emt 0:00:41]} Ra1+ {[%emt 0:05:32]} 47. Kc2 {[%emt 0:00:01]} Ra2+ {[%emt 0:04:10]} 48. Kb1 {[%emt 0:00:24]} Rb2+ {[%emt 0:00:17]} 49. Kc1 {[%emt 0:00:51]} a3 {[%emt 0:00:40]} 50. g4 {[%emt 0:09:23]} Re2 {[%emt 0:06:26]} 51. g5 {[%emt 0:02:36]} a2 {[%emt 0:02:04]} 52. Ra7 {[%emt 0:01:11]} a1=Q+ {[%emt 0:00:27]} 53. Rxa1 {[%emt 0:00:05]} Bxa1 0-1